fUST/lending_fUST_20250130
["ID","MTS","AMOUNT","RATE_DAILY","PERIOD"]
[350943011,1738224634508,-3000.0,0.0001651,2]
[350943012,1738224634517,-3000.0,0.0001652,2]
[350943013,1738224634527,-3000.0,0.0001653,2]
[350943014,1738224634539,-2357.78794802,0.0001654,2]
[350943347,1738224637735,-500.0,0.00016438,2]
[350943350,1738224637745,-850.49,0.00016438,2]
[350943352,1738224637754,-500.0,0.00016438,2]
[350943354,1738224637763,-642.21205198,0.0001654,2]
[350943356,1738224637773,-4323.01259,0.0001655,2]
[350943358,1738224637782,-500.0,0.00016574,2]
[350943360,1738224637791,-500.0,0.00016574,2]
[350943362,1738224637809,-500.0,0.00016574,2]
[350943365,1738224637820,-500.0,0.00016575,2]
[350943367,1738224637829,-500.0,0.00016575,2]
[350943369,1738224637839,-500.0,0.00016575,2]
[350943371,1738224637848,-500.0,0.00016575,2]
[350943373,1738224637858,-500.0,0.00016575,2]
[350943375,1738224637867,-500.0,0.00016575,2]
[350943377,1738224637877,-500.0,0.00016575,2]
[350943379,1738224637886,-500.0,0.00016575,2]
[350943381,1738224637895,-537.59208679,0.00016575,2]
[350943383,1738224637904,-500.0,0.00016575,2]
[350943385,1738224637914,-500.0,0.00016575,2]
[350943387,1738224637923,-500.0,0.00016575,2]
[350943389,1738224637932,-500.0,0.00016575,2]
[350943391,1738224637942,-500.0,0.00016575,2]
[350943393,1738224637951,-500.0,0.00016575,2]
[350943395,1738224637960,-500.0,0.00016575,2]
[350943397,1738224637969,-500.0,0.00016575,2]
[350943399,1738224637979,-500.0,0.00016575,2]
[350943401,1738224637988,-299.64782868,0.00016575,2]
[350943404,1738224638009,-200.35217132,0.00016575,2]
[350943406,1738224638018,-500.0,0.00016575,2]
[350943408,1738224638028,-500.0,0.00016575,2]
[350943410,1738224638038,-500.0,0.00016575,2]
[350943412,1738224638048,-500.0,0.00016575,2]
[350943415,1738224638061,-500.0,0.00016575,2]
[350943417,1738224638071,-500.0,0.00016575,2]
[350943418,1738224638080,-500.0,0.00016575,2]
[350943421,1738224638090,-500.0,0.00016575,2]
[350943422,1738224638099,-500.0,0.00016575,2]
[350943424,1738224638109,-500.0,0.00016575,2]
[350943427,1738224638119,-500.0,0.00016575,2]
[350943429,1738224638128,-500.0,0.00016575,2]
[350943431,1738224638138,-500.0,0.00016575,2]
[350943433,1738224638147,-154.97391082,0.00016575,2]
[350943435,1738224638160,-345.02608918,0.00016575,2]
[350943437,1738224638169,-500.0,0.00016575,2]
[350943439,1738224638178,-500.0,0.00016575,2]
[350943441,1738224638187,-500.0,0.00016575,2]
[350943443,1738224638197,-724.4,0.00016575,2]
[350943445,1738224638206,-500.0,0.00016575,2]
[350943447,1738224638215,-500.0,0.00016575,2]
[350943449,1738224638225,-500.0,0.00016575,2]
[350943451,1738224638234,-500.0,0.00016575,2]
[350943453,1738224638243,-500.0,0.00016575,2]
[350943455,1738224638252,-500.0,0.00016575,2]
[350943457,1738224638262,-500.0,0.00016575,2]
[350943459,1738224638271,-500.0,0.00016575,2]
[350943461,1738224638280,-500.0,0.00016575,2]
[350943463,1738224638291,-500.0,0.00016575,2]
[350943465,1738224638300,-500.0,0.00016575,2]
[350943467,1738224638309,-500.0,0.00016575,2]
[350943469,1738224638318,-500.0,0.00016575,2]
[350943471,1738224638328,-500.0,0.00016575,2]
[350943473,1738224638337,-259.3197886,0.00016575,2]
[350943475,1738224638346,-500.0,0.00016575,2]
[350943477,1738224638355,-500.0,0.00016575,2]
[350943479,1738224638366,-500.0,0.00016575,2]
[350943481,1738224638375,-500.0,0.00016575,2]
[350943483,1738224638385,-500.0,0.00016575,2]
[350943485,1738224638394,-500.0,0.00016575,2]
[350943487,1738224638403,-1502.76,0.00016575,2]
[350943489,1738224638412,-500.0,0.00016575,2]
[350943491,1738224638421,-500.0,0.00016575,2]
[350943493,1738224638431,-500.0,0.00016575,2]
[350943495,1738224638440,-500.0,0.00016575,2]
[350943497,1738224638454,-500.0,0.00016575,2]
[350943499,1738224638464,-500.0,0.00016575,2]
[350943501,1738224638473,-500.0,0.00016575,2]
[350943503,1738224638483,-4192.65,0.00016575,2]
[350943506,1738224638492,-500.0,0.00016575,2]
[350943508,1738224638503,-500.0,0.00016575,2]
[350943510,1738224638512,-476.98281312,0.00016575,2]
[350943660,1738224639839,-500.0,0.00016438,2]
[350943662,1738224639848,-23.01718688,0.00016575,2]
[350943664,1738224639857,-500.0,0.00016575,2]
[350943666,1738224639867,-500.0,0.00016575,2]
[350943668,1738224639876,-561.82,0.00016575,2]
[350943670,1738224639885,-500.0,0.00016575,2]
[350943672,1738224639895,-500.0,0.00016575,2]
[350943674,1738224639906,-500.0,0.00016575,2]
[350943676,1738224639915,-500.0,0.00016575,2]
[350943678,1738224639924,-500.0,0.00016575,2]
[350943679,1738224639933,-500.0,0.00016575,2]
[350943681,1738224639942,-500.0,0.00016575,2]
[350943683,1738224639951,-500.0,0.00016575,2]
[350943685,1738224639960,-500.0,0.00016575,2]
[350943687,1738224639969,-850.49,0.00016575,2]
[350943689,1738224639978,-500.0,0.00016575,2]
[350943691,1738224639987,-719.89,0.000166,2]
[350943693,1738224639996,-300.0,0.000167,6]
[350943695,1738224640006,-500.0,0.00016711,2]
[350943697,1738224640015,-500.0,0.00016711,2]
[350943699,1738224640025,-500.0,0.00016711,2]
[350943701,1738224640035,-205.18123557,0.00016711,2]
[350943703,1738224640045,-351.79731325,0.00016711,2]
[350943705,1738224640054,-500.0,0.00016712,2]
[350943707,1738224640063,-500.0,0.00016712,2]
[350943709,1738224640072,-609.63853937,0.00016712,2]
[350943711,1738224640081,-500.0,0.00016712,2]
[350943713,1738224640090,-500.0,0.00016712,2]
[350943715,1738224640099,-500.0,0.00016712,2]
[350943716,1738224640108,-500.0,0.00016712,2]
[350943718,1738224640117,-500.0,0.00016712,2]
[350943720,1738224640126,-500.0,0.00016712,2]
[350943722,1738224640136,-500.0,0.00016712,2]
[350943724,1738224640145,-500.0,0.00016712,2]
[350943726,1738224640154,-500.0,0.00016712,2]
[350943728,1738224640163,-500.0,0.00016712,2]
[350943730,1738224640172,-500.0,0.00016712,2]
[350943732,1738224640181,-500.0,0.00016712,2]
[350943734,1738224640190,-500.0,0.00016712,2]
[350943736,1738224640199,-190.91065091,0.00016712,2]
[350943738,1738224640209,-500.0,0.00016712,2]
[350943740,1738224640218,-500.0,0.00016712,2]
[350943742,1738224640227,-500.0,0.00016712,2]
[350943744,1738224640236,-500.0,0.00016712,2]
[350943746,1738224640245,-500.0,0.00016712,2]
[350943748,1738224640254,-500.0,0.00016712,2]
[350943750,1738224640263,-500.0,0.00016712,2]
[350943752,1738224640273,-500.0,0.00016712,2]
[350943754,1738224640282,-500.0,0.00016712,2]
[350943756,1738224640292,-500.0,0.00016712,2]
[350943758,1738224640302,-500.0,0.00016712,2]
[350943760,1738224640311,-181.88061924,0.00016712,2]
[350943762,1738224640321,-500.0,0.00016712,2]
[350943763,1738224640330,-500.0,0.00016712,2]
[350943765,1738224640340,-500.0,0.00016712,2]
[350943767,1738224640349,-724.4,0.00016712,2]
[350943769,1738224640359,-500.0,0.00016712,2]
[350943771,1738224640368,-500.0,0.00016712,2]
[350943773,1738224640378,-500.0,0.00016712,2]
[350943775,1738224640388,-500.0,0.00016712,2]
[350943777,1738224640397,-500.0,0.00016712,2]
[350943779,1738224640407,-500.0,0.00016712,2]
[350943781,1738224640416,-500.0,0.00016712,2]
[350943783,1738224640426,-500.0,0.00016712,2]
[350943785,1738224640437,-500.0,0.00016712,2]
[350943787,1738224640449,-500.0,0.00016712,2]
[350943789,1738224640459,-500.0,0.00016712,2]
[350943791,1738224640471,-500.0,0.00016712,2]
[350943793,1738224640481,-500.0,0.00016712,2]
[350943795,1738224640495,-500.0,0.00016712,2]
[350943797,1738224640506,-500.0,0.00016712,2]
[350943798,1738224640516,-500.0,0.00016712,2]
[350943800,1738224640528,-500.0,0.00016712,2]
[350943802,1738224640538,-500.0,0.00016712,2]
[350943804,1738224640551,-1502.76,0.00016712,2]
[350943806,1738224640561,-500.0,0.00016712,2]
[350943808,1738224640570,-500.0,0.00016712,2]
[350943810,1738224640580,-500.0,0.00016712,2]
[350943812,1738224640589,-500.0,0.00016712,2]
[350943814,1738224640599,-500.0,0.00016712,2]
[350943816,1738224640609,-500.0,0.00016712,2]
[350943818,1738224640619,-4192.65,0.00016712,2]
[350943820,1738224640628,-500.0,0.00016712,2]
[350943822,1738224640638,-500.0,0.00016712,2]
[350943824,1738224640648,-500.0,0.00016712,2]
[350943826,1738224640657,-500.0,0.00016712,2]
[350943828,1738224640667,-561.82,0.00016712,2]
[350943830,1738224640676,-500.0,0.00016712,2]
[350943832,1738224640686,-500.0,0.00016712,2]
[350943834,1738224640695,-500.0,0.00016712,2]
[350943836,1738224640704,-500.0,0.00016712,2]
[350943838,1738224640714,-500.0,0.00016712,2]
[350943840,1738224640723,-500.0,0.00016712,2]
[350943842,1738224640732,-500.0,0.00016712,2]
[350943844,1738224640742,-500.0,0.00016712,2]
[350943845,1738224640751,-540.94210851,0.00016712,2]
[350943847,1738224640760,-850.49,0.00016712,2]
[350943849,1738224640769,-500.0,0.00016712,2]
[350943851,1738224640779,-171.09206404,0.00016749,2]
[350943853,1738224640791,-500.0,0.00016848,2]
[350943855,1738224640801,-500.0,0.00016849,2]
[350943857,1738224640810,-500.0,0.00016849,2]
[350943859,1738224640819,-500.0,0.00016849,2]
[350943861,1738224640828,-500.0,0.00016849,2]
[350943863,1738224640837,-500.0,0.00016849,2]
[350943865,1738224640847,-500.0,0.00016849,2]
[350943867,1738224640856,-173.46726981,0.00016849,2]
[350943869,1738224640865,-500.0,0.00016849,2]
[350943871,1738224640874,-500.0,0.00016849,2]
[350943873,1738224640883,-500.0,0.00016849,2]
[350943875,1738224640893,-500.0,0.00016849,2]
[350943877,1738224640902,-500.0,0.00016849,2]
[350943879,1738224640911,-500.0,0.00016849,2]
[350943881,1738224640920,-500.0,0.00016849,2]
[350943882,1738224640930,-500.0,0.00016849,2]
[350943884,1738224640940,-500.0,0.00016849,2]
[350943886,1738224640950,-500.0,0.00016849,2]
[350943888,1738224640962,-500.0,0.00016849,2]
[350943890,1738224640971,-319.6570126,0.00016849,2]
[350943892,1738224640980,-500.0,0.00016849,2]
[350943894,1738224640989,-500.0,0.00016849,2]
[350943896,1738224640999,-500.0,0.00016849,2]
[350943898,1738224641008,-500.0,0.00016849,2]
[350943900,1738224641017,-500.0,0.00016849,2]
[350943901,1738224641026,-500.0,0.00016849,2]
[350943903,1738224641036,-724.4,0.00016849,2]
[350943905,1738224641046,-500.0,0.00016849,2]
[350943907,1738224641056,-500.0,0.00016849,2]
[350943909,1738224641065,-500.0,0.00016849,2]
[350943911,1738224641074,-500.0,0.00016849,2]
[350943913,1738224641084,-500.0,0.00016849,2]
[350943915,1738224641093,-500.0,0.00016849,2]
[350943917,1738224641103,-500.0,0.00016849,2]
[350943919,1738224641112,-500.0,0.00016849,2]
[350943921,1738224641121,-500.0,0.00016849,2]
[350943923,1738224641130,-500.0,0.00016849,2]
[350943925,1738224641140,-500.0,0.00016849,2]
[350943927,1738224641149,-500.0,0.00016849,2]
[350943929,1738224641158,-500.0,0.00016849,2]
[350943930,1738224641168,-500.0,0.00016849,2]
[350943932,1738224641178,-500.0,0.00016849,2]
[350943934,1738224641187,-500.0,0.00016849,2]
[350943936,1738224641197,-500.0,0.00016849,2]
[350943938,1738224641207,-500.0,0.00016849,2]
[350943940,1738224641216,-1502.76,0.00016849,2]
[350943942,1738224641225,-500.0,0.00016849,2]
[350943944,1738224641234,-500.0,0.00016849,2]
[350943946,1738224641243,-500.0,0.00016849,2]
[350943948,1738224641252,-500.0,0.00016849,2]
[350943950,1738224641261,-500.0,0.00016849,2]
[350943952,1738224641271,-500.0,0.00016849,2]
[350943954,1738224641280,-4192.65,0.00016849,2]
[350943956,1738224641289,-611.01189543,0.00016849,2]
[350943958,1738224641298,-500.0,0.00016849,2]
[350943960,1738224641307,-500.0,0.00016849,2]
[350943962,1738224641316,-500.0,0.00016849,2]
[350943964,1738224641326,-561.82,0.00016849,2]
[350943966,1738224641335,-500.0,0.00016849,2]
[350943968,1738224641345,-500.0,0.00016849,2]
[350943969,1738224641356,-500.0,0.00016849,2]
[350943972,1738224641367,-500.0,0.00016849,2]
[350943974,1738224641377,-500.0,0.00016849,2]
[350943975,1738224641387,-446.16297722,0.00016849,2]
[350943977,1738224641396,-500.0,0.00016849,2]
[350943979,1738224641405,-850.49,0.00016849,2]
[350943981,1738224641414,-500.0,0.00016849,2]
[350943983,1738224641424,-395.0,0.00016939,2]
[350943985,1738224641434,-285.916,0.0001694,2]
[350943987,1738224641443,-500.0,0.00016959,2]
[350943989,1738224641458,-500.0,0.00016985,2]
[350943991,1738224641467,-500.0,0.00016986,2]
[350943993,1738224641476,-500.0,0.00016986,2]
[350943995,1738224641486,-500.0,0.00016986,2]
[350943997,1738224641496,-500.0,0.00016986,2]
[350943999,1738224641505,-473.90078964,0.00016986,2]
[350944001,1738224641514,-500.0,0.00016986,2]
[350944003,1738224641524,-246.44848378,0.00016986,2]
[350944005,1738224641534,-500.0,0.00016986,2]
[350944007,1738224641543,-500.0,0.00016986,2]
[350944009,1738224641552,-500.0,0.00016986,2]
[350944011,1738224641562,-500.0,0.00016986,2]
[350944013,1738224641571,-552.95,0.00016986,2]
[350944015,1738224641581,-500.0,0.00016986,2]
[350944017,1738224641591,-500.0,0.00016986,2]
[350944019,1738224641600,-500.0,0.00016986,2]
[350944021,1738224641610,-500.0,0.00016986,2]
[350944023,1738224641620,-500.0,0.00016986,2]
[350944024,1738224641629,-500.0,0.00016986,2]
[350944026,1738224641638,-724.4,0.00016986,2]
[350944028,1738224641647,-500.0,0.00016986,2]
[350944030,1738224641657,-224.96330418,0.00016986,2]
[350944032,1738224641666,-500.0,0.00016986,2]
[350944034,1738224641676,-500.0,0.00016986,2]
[350944036,1738224641686,-500.0,0.00016986,2]
[350944038,1738224641695,-500.0,0.00016986,2]
[350944040,1738224641705,-500.0,0.00016986,2]
[350944042,1738224641714,-498.87126747,0.00016986,2]
[350944044,1738224641724,-500.0,0.00016986,2]
[350944045,1738224641733,-500.0,0.00016986,2]
[350944046,1738224641743,-500.0,0.00016986,2]
[350944047,1738224641752,-500.0,0.00016986,2]
[350944048,1738224641762,-178.58,0.00016986,2]
[350944049,1738224641771,-500.0,0.00016986,2]
[350944050,1738224641780,-500.0,0.00016986,2]
[350944051,1738224641789,-500.0,0.00016986,2]
[350944052,1738224641799,-1502.76,0.00016986,2]
[350944053,1738224641808,-500.0,0.00016986,2]
[350944054,1738224641817,-500.0,0.00016986,2]
[350944055,1738224641827,-500.0,0.00016986,2]
[350944056,1738224641837,-500.0,0.00016986,2]
[350944057,1738224641847,-500.0,0.00016986,2]
[350944058,1738224641856,-500.0,0.00016986,2]
[350944059,1738224641865,-4192.65,0.00016986,2]
[350944060,1738224641875,-500.0,0.00016986,2]
[350944061,1738224641884,-318.19825185,0.00016986,2]
[350944216,1738224643355,-500.0,0.00016575,2]
[350944218,1738224643364,-500.0,0.00016712,2]
[350944220,1738224643373,-500.0,0.00016849,2]
[350944222,1738224643383,-181.80174815,0.00016986,2]
[350944224,1738224643392,-500.0,0.00016986,2]
[350944226,1738224643401,-561.82,0.00016986,2]
[350944228,1738224643411,-500.0,0.00016986,2]
[350944230,1738224643420,-500.0,0.00016986,2]
[350944232,1738224643430,-500.0,0.00016986,2]
[350944234,1738224643439,-500.0,0.00016986,2]
[350944236,1738224643449,-500.0,0.00016986,2]
[350944238,1738224643461,-850.49,0.00016986,2]
[350944240,1738224643470,-500.0,0.00016986,2]
[350944242,1738224643479,-500.0,0.00016986,2]
[350944244,1738224643489,-4998.84196532,0.00017,2]
[350944246,1738224643498,-64.24904063,0.00017077,2]
[350944248,1738224643510,-205.45883295,0.00017077,2]
[350944250,1738224643519,-500.0,0.00017097,2]
[350944252,1738224643529,-265.4,0.00017122,2]
[350944254,1738224643539,-473.99272276,0.00017123,2]
[350944490,1738224645848,-199.823409,0.00016409,2]
[350944492,1738224645858,-26.00727724,0.00017123,2]
[350944494,1738224645867,-405.72931376,0.00017123,2]
[350944499,1738224645902,-94.27068624,0.00017123,2]
[350944501,1738224645911,-500.0,0.00017123,2]
[350944503,1738224645921,-500.0,0.00017123,2]
[350944504,1738224645930,-500.0,0.00017123,2]
[350944506,1738224645940,-500.0,0.00017123,2]
[350944508,1738224645950,-500.0,0.00017123,2]
[350944510,1738224645959,-500.0,0.00017123,2]
[350944512,1738224645968,-21.26513376,0.00017123,2]
[350944760,1738224773267,241.957877,0.00013973,2]
[350944761,1738225353906,855.8934796,0.00015021,2]
[350944762,1738225399086,3100.95896424,0.00015101,2]
[350944763,1738225416562,160.0,0.0002,120]
[350944764,1738225480453,2797.527726,0.00015101,2]
[350944782,1738225623336,151.047,0.00015101,2]
[350944785,1738225675373,74453.50914888,0.000151,2]
[350944818,1738225832106,-280.62380415,0.0001515,2]
[350944819,1738225832116,-300.0,0.00015249,2]
[350944820,1738225832126,-3342.41867465,0.0001525,2]
[350944821,1738225832269,-3216.52141648,0.0001525,2]
[350944868,1738225837963,-4339.46927697,0.0001525,2]
[350944870,1738225837973,-328.932626,0.00015342,2]
[350944872,1738225837983,-10184.9376048,0.00015473,2]
[350944874,1738225837993,-5812.08214099,0.000155,2]
[350944876,1738225838004,-711.44376742,0.00016,2]
[350944878,1738225838014,-1144.96337253,0.00016299,2]
[350944880,1738225838023,-344.53828391,0.00016338,2]
[350944882,1738225838033,-500.0,0.00016399,2]
[350944884,1738225838042,-500.0,0.00016399,2]
[350944886,1738225838051,-500.0,0.00016399,2]
[350944888,1738225838061,-500.0,0.00016399,2]
[350944890,1738225838070,-500.0,0.00016399,2]
[350944892,1738225838079,-500.0,0.00016399,2]
[350944894,1738225838089,-500.0,0.00016399,2]
[350944896,1738225838099,-430.71396662,0.00016399,2]
[350944898,1738225838108,-540.33073922,0.00016399,2]
[350944901,1738225838117,-500.0,0.00016399,2]
[350944903,1738225838126,-500.0,0.00016399,2]
[350944905,1738225838136,-500.0,0.00016399,2]
[350944907,1738225838146,-500.0,0.00016399,2]
[350944909,1738225838155,-500.0,0.00016399,2]
[350944911,1738225838164,-518.29335828,0.00016399,2]
[350944913,1738225838173,-500.0,0.00016399,2]
[350944915,1738225838183,-500.0,0.00016399,2]
[350944917,1738225838192,-500.0,0.00016399,2]
[350944919,1738225838201,-500.0,0.00016399,2]
[350944921,1738225838211,-500.0,0.00016399,2]
[350944923,1738225838220,-500.0,0.00016399,2]
[350944925,1738225838229,-500.0,0.00016399,2]
[350944927,1738225838239,-500.0,0.00016399,2]
[350944929,1738225838248,-500.0,0.00016399,2]
[350944931,1738225838258,-500.0,0.00016399,2]
[350944933,1738225838267,-500.0,0.00016399,2]
[350944935,1738225838276,-500.0,0.00016399,2]
[350944937,1738225838285,-500.0,0.00016399,2]
[350944939,1738225838295,-500.0,0.00016399,2]
[350944941,1738225838304,-500.0,0.00016399,2]
[350944943,1738225838314,-500.0,0.00016399,2]
[350944945,1738225838323,-500.0,0.00016399,2]
[350944947,1738225838332,-500.0,0.00016399,2]
[350944950,1738225838346,-500.0,0.00016399,2]
[350944952,1738225838355,-500.0,0.00016399,2]
[350944954,1738225838364,-500.0,0.00016399,2]
[350944956,1738225838373,-500.0,0.00016399,2]
[350944958,1738225838381,-500.0,0.00016399,2]
[350944960,1738225838390,-500.0,0.00016399,2]
[350944962,1738225838399,-500.0,0.00016399,2]
[350944963,1738225838408,-500.0,0.00016399,2]
[350944965,1738225838417,-500.0,0.00016399,2]
[350944967,1738225838426,-500.0,0.00016399,2]
[350944969,1738225838435,-500.0,0.00016399,2]
[350944971,1738225838444,-454.52843763,0.00016399,2]
[350944973,1738225838454,-500.0,0.00016399,2]
[350944976,1738225838467,-500.0,0.00016399,2]
[350944977,1738225838477,-500.0,0.00016399,2]
[350944979,1738225838487,-499.99999999,0.00016399,2]
[350944981,1738225838496,-500.0,0.00016399,2]
[350944983,1738225838505,-500.0,0.00016399,2]
[350944985,1738225838514,-500.0,0.00016399,2]
[350944987,1738225838524,-500.0,0.00016399,2]
[350944989,1738225838533,-500.0,0.00016399,2]
[350944991,1738225838542,-500.0,0.00016399,2]
[350944993,1738225838551,-500.0,0.00016399,2]
[350944995,1738225838560,-500.0,0.00016399,2]
[350944997,1738225838570,-399.99999999,0.00016399,2]
[350944999,1738225838579,-500.0,0.00016399,2]
[350945001,1738225838588,-500.0,0.00016399,2]
[350945003,1738225838597,-596.25811928,0.00016399,2]
[350945005,1738225838607,-11239.76637943,0.000164,15]
[350945007,1738225838619,-797.45686413,0.000164,15]
[350945010,1738225838630,-14379.41942396,0.000164,15]
[350945146,1738225840085,-744.95999996,0.000164,15]
[350945157,1738225840175,-845.78336498,0.000164,15]
[350945159,1738225840187,-2139.16944325,0.000164,15]
[350945188,1738225843160,-1677.28475584,0.000164,15]
[350945203,1738225863997,209.70908984,0.0001505,2]
[350945204,1738225866527,229.859983,0.00013973,2]
[350945206,1738226746359,218.366983,0.00013973,2]
[350945207,1738226825814,3800.0,0.00015101,2]
[350945242,1738227033087,-310.136,0.00015164,2]
[350945243,1738227033140,-189.864,0.00015164,2]
[350945244,1738227033150,-279.083756,0.00015347,2]
[350945245,1738227033165,-300.0,0.00015393,2]
[350945246,1738227033175,-3992.65545599,0.00015394,2]
[350945247,1738227033194,-1360.63484641,0.00015394,2]
[350945248,1738227033206,-65.87819645,0.00015394,2]
[350945282,1738227038150,-293.33861973,0.00015394,2]
[350945285,1738227038165,-104.91243902,0.00015394,2]
[350945287,1738227038175,-1045.68999411,0.00015516,2]
[350945289,1738227038187,-1599.13135451,0.00015516,2]
[350945293,1738227038218,-526.33,0.00015516,2]
[350945295,1738227038229,-4358.89854885,0.00015516,2]
[350945297,1738227038240,-8539.42125864,0.00015517,2]
[350945299,1738227038256,-340.69312919,0.00015517,2]
[350945361,1738227040254,-512.37431689,0.00015517,2]
[350945370,1738227043135,-792.44890008,0.00015517,2]
[350945371,1738227043145,-7596.90784503,0.00016122,2]
[350945372,1738227043242,-2879.83303542,0.00016122,2]
[350945376,1738227130334,1804.26202865,0.0001,2]
[350945377,1738227705932,207.448633,0.00013973,2]
[350945378,1738227816727,37904.38311976,0.00015101,2]
[350945379,1738228200770,13173.0,0.00020423,120]
[350945598,1738228522132,409.425738,0.00014929,2]
[350945599,1738228715566,197.076201,0.00013973,2]
[350945600,1738229015382,11914.24690316,0.00014938,2]
[350945621,1738229365270,1816.1650922,0.00014911,2]
[350945626,1738229399333,204.712869,0.00014795,2]
[350945639,1738229438809,-5650.80850466,0.00015198,2]
[350945653,1738229443515,-3038.62749814,0.00015198,2]
[350945654,1738229443524,-192.25260882,0.00015212,2]
[350945655,1738229443534,-300.0,0.00015397,2]
[350945656,1738229443544,-11914.24690316,0.00015398,2]
[350945657,1738229443554,-5812.08214099,0.000155,2]
[350945658,1738229443564,-159.065,0.0001558,2]
[350945659,1738229443574,-25453.86153705,0.00016,2]
[350945660,1738229443583,-711.44376742,0.00016,2]
[350945661,1738229443592,-310.3641415,0.000161,2]
[350945662,1738229443601,-461.0832715,0.000161,2]
[350945663,1738229443610,-889.93222743,0.00016124,2]
[350945664,1738229443620,-162.070554,0.0001616,2]
[350945665,1738229443629,-889.93222741,0.00016168,2]
[350945666,1738229443638,-5102.83658112,0.000162,2]
[350945667,1738229443647,-151.0,0.000162,2]
[350945668,1738229443655,-157.024281,0.000162,2]
[350945669,1738229443664,-157.024281,0.000162,2]
[350945670,1738229443673,-151.0,0.000162,2]
[350945671,1738229443682,-151.0,0.000162,2]
[350945672,1738229443692,-151.0,0.000162,2]
[350945673,1738229443701,-158.712357,0.000162,2]
[350945674,1738229443711,-160.062304,0.000162,2]
[350945675,1738229443720,-151.0,0.000162,2]
[350945676,1738229443729,-151.0,0.000162,2]
[350945677,1738229443738,-151.0,0.000162,2]
[350945678,1738229443747,-151.0,0.000162,2]
[350945679,1738229443756,-151.0,0.000162,2]
[350945680,1738229443765,-151.0,0.000162,2]
[350945681,1738229443774,-151.0,0.000162,2]
[350945682,1738229443782,-151.0,0.000162,2]
[350945683,1738229443791,-290.233766,0.000162,2]
[350945684,1738229443800,-290.233766,0.000162,2]
[350945685,1738229443810,-151.0,0.000162,2]
[350945686,1738229443819,-889.93222741,0.00016212,2]
[350945687,1738229443829,-162.070554,0.00016224,3]
[350945688,1738229443838,-889.93222741,0.00016256,2]
[350945689,1738229443848,-151.0,0.00016273,2]
[350945690,1738229443857,-151.0,0.000163,2]
[350945691,1738229443866,-151.0,0.000163,2]
[350945692,1738229443875,-889.93222741,0.000163,2]
[350945693,1738229443884,-151.0,0.000163,2]
[350945694,1738229443893,-211.00263,0.000163,2]
[350945695,1738229443902,-290.233766,0.000163,2]
[350945696,1738229443912,-290.233766,0.000163,2]
[350945697,1738229443921,-502.34740706,0.00016373,2]
[350945698,1738229443930,-501.1427391,0.00016373,2]
[350945699,1738229443939,-151.0,0.00016373,2]
[350945700,1738229443957,-157.024281,0.00016373,2]
[350945701,1738229443971,-157.024281,0.00016373,2]
[350945702,1738229443991,-151.0,0.00016373,2]
[350945703,1738229444005,-151.0,0.00016373,2]